fUST/lending_fUST_20250519
["ID","MTS","AMOUNT","RATE_DAILY","PERIOD"]
[361543870,1747605043920,-500.0,0.00015654,2]
[361543872,1747605043931,-500.0,0.00015654,2]
[361543874,1747605043944,-500.0,0.00015654,2]
[361543876,1747605043955,-500.0,0.00015654,2]
[361543878,1747605043964,-500.0,0.00015654,2]
[361543880,1747605043975,-500.0,0.00015654,2]
[361543882,1747605043985,-500.0,0.00015654,2]
[361543884,1747605043996,-503.54752746,0.00015654,2]
[361543886,1747605044006,-500.0,0.00015654,2]
[361543888,1747605044017,-500.0,0.00015654,2]
[361543890,1747605044027,-500.0,0.00015654,2]
[361543892,1747605044038,-500.0,0.00015654,2]
[361543895,1747605044048,-500.0,0.00015654,2]
[361543896,1747605044059,-500.0,0.00015654,2]
[361543899,1747605044073,-397.60149896,0.00015654,2]
[361543901,1747605044083,-318.63467822,0.00015654,2]
[361543903,1747605044094,-500.0,0.00015654,2]
[361543905,1747605044105,-500.0,0.00015654,2]
[361543908,1747605044128,-500.0,0.00015654,2]
[361543910,1747605044141,-500.0,0.00015654,2]
[361543913,1747605044153,-324.86120094,0.0002,2]
[361543915,1747605044166,-500.0,0.0002,2]
[361543917,1747605044178,-157.85,0.0002,2]
[361543920,1747605044190,-2200.0,0.0002,2]
[361543922,1747605044203,-736.292793,0.00020187,2]
[361543924,1747605044215,-37803.4356574,0.000202,3]
[361543926,1747605044226,-998.55070715,0.000202,3]
[361543929,1747605044238,-12636.50182523,0.000202,3]
[361543931,1747605044249,-160.0,0.000202,3]
[361543933,1747605044260,-5295.05090422,0.0002021,2]
[361543935,1747605044271,-646.04396524,0.00020309,2]
[361543937,1747605044282,-212.32903618,0.0002059,3]
[361543939,1747605044292,-5295.05090422,0.0002059,3]
[361543942,1747605044304,-998.55070715,0.0002059,3]
[361543944,1747605044314,-12636.50182523,0.0002059,3]
[361543946,1747605044325,-500.0,0.00020727,2]
[361543948,1747605044336,-500.0,0.00020727,2]
[361543950,1747605044347,-500.0,0.00020727,2]
[361543952,1747605044358,-500.0,0.00020727,2]
[361543954,1747605044369,-500.0,0.00020727,2]
[361543956,1747605044379,-500.0,0.00020727,2]
[361543959,1747605044390,-550.19523507,0.00020727,2]
[361543961,1747605044401,-500.0,0.00020727,2]
[361543963,1747605044413,-240.26006703,0.00020727,2]
[361543965,1747605044427,-312.37338758,0.00020727,2]
[361543967,1747605044440,-500.0,0.00020727,2]
[361543969,1747605044452,-500.0,0.00020727,2]
[361543971,1747605044465,-500.0,0.00020727,2]
[361543972,1747605044477,-500.0,0.00020727,2]
[361543973,1747605044488,-500.0,0.00020727,2]
[361543974,1747605044499,-500.0,0.00020727,2]
[361543975,1747605044509,-500.0,0.00020727,2]
[361543976,1747605044520,-500.0,0.00020727,2]
[361543977,1747605044531,-2200.0,0.00020728,2]
[361543978,1747605044542,-646.04396524,0.00020773,2]
[361543979,1747605044553,-80000.0,0.000208,3]
[361543980,1747605044563,-212.32903618,0.000208,3]
[361543981,1747605044574,-998.55070715,0.000208,3]
[361543982,1747605044584,-160.0,0.000208,3]
[361543983,1747605044595,-154.2938119,0.00020815,2]
[361543984,1747605044606,-153.0,0.00020815,2]
[361543985,1747605044616,-153.0,0.00020815,2]
[361543986,1747605044627,-3255.8201815,0.00020868,2]
[361543987,1747605044637,-24009.51698397,0.000209,3]
[361543988,1747605044649,-212.32903618,0.000209,3]
[361543990,1747605044663,-151.5272737,0.00020956,2]
[361543991,1747605044674,-5295.05090422,0.00020969,4]
[361543993,1747605044685,-157.767928,0.00020998,3]
[361543995,1747605044696,-160.007061,0.00020998,3]
[361543997,1747605044706,-160.711953,0.00020999,2]
[361544000,1747605044721,-267.3794451,0.00021,2]
[361544002,1747605044734,-400.0,0.00021,2]
[361544005,1747605044745,-999.959999,0.00021,10]
[361544007,1747605044757,-700.0,0.00021,5]
[361544009,1747605044768,-2000.0,0.00021,2]
[361544011,1747605044779,-10000.0,0.00021,5]
[361544013,1747605044791,-150398.51201992,0.00021,7]
[361544015,1747605044802,-2500.0,0.00021,2]
[361544018,1747605044814,-2000.0,0.00021,2]
[361544020,1747605044824,-2500.0,0.00021,2]
[361544022,1747605044834,-3000.0,0.00021,2]
[361544045,1747605044843,-212.32903618,0.00021,7]
[361544048,1747605045063,-998.55070715,0.00021,7]
[361544050,1747605045076,-12636.50182523,0.00021,7]
[361544052,1747605045085,-160.0,0.00021,7]
[361544055,1747605045096,-3000.0,0.0002101,2]
[361544057,1747605045106,-3000.0,0.0002102,2]
[361544059,1747605045115,-3000.0,0.0002103,2]
[361544061,1747605045124,-3000.0,0.0002104,2]
[361544063,1747605045134,-3000.0,0.0002105,2]
[361544065,1747605045144,-3000.0,0.0002106,2]
[361544067,1747605045153,-3000.0,0.0002107,2]
[361544069,1747605045163,-3000.0,0.0002108,2]
[361544071,1747605045173,-3000.0,0.0002109,2]
[361544073,1747605045182,-546.0,0.00021098,2]
[361544075,1747605045191,-707.0,0.00021098,2]
[361544077,1747605045201,-2235.0,0.00021098,2]
[361544079,1747605045210,-404.0,0.00021098,2]
[361544081,1747605045220,-3000.0,0.000211,2]
[361544083,1747605045229,-3000.0,0.0002111,2]
[361544085,1747605045239,-3000.0,0.0002112,2]
[361544087,1747605045248,-3000.0,0.0002113,2]
[361544089,1747605045258,-3000.0,0.0002114,2]
[361544091,1747605045268,-3000.0,0.0002115,2]
[361544093,1747605045278,-3000.0,0.0002116,2]
[361544094,1747605045287,-3000.0,0.0002117,2]
[361544096,1747605045296,-569.6479192,0.00021171,2]
[361544098,1747605045306,-3000.0,0.0002118,2]
[361544100,1747605045316,-3000.0,0.0002119,2]
[361544102,1747605045325,-7501.14208021,0.000212,30]
[361544104,1747605045335,-3000.0,0.000212,2]
[361544106,1747605045345,-3000.0,0.0002121,2]
[361544108,1747605045354,-3000.0,0.0002122,2]
[361544110,1747605045364,-3000.0,0.0002123,2]
[361544112,1747605045373,-3000.0,0.0002124,2]
[361544114,1747605045382,-3000.0,0.0002125,2]
[361544116,1747605045391,-3000.0,0.0002126,2]
[361544118,1747605045401,-160.0,0.0002126,4]
[361544120,1747605045410,-3000.0,0.0002127,2]
[361544122,1747605045419,-3000.0,0.0002128,2]
[361544124,1747605045428,-3000.0,0.0002129,2]
[361544126,1747605045438,-3000.0,0.000213,2]
[361544128,1747605045447,-3000.0,0.0002131,2]
[361544130,1747605045457,-3000.0,0.0002132,2]
[361544132,1747605045467,-200.0,0.00021323,2]
[361544134,1747605045477,-3000.0,0.0002133,2]
[361544136,1747605045486,-3000.0,0.0002134,2]
[361544138,1747605045496,-5295.05090422,0.00021348,5]
[361544140,1747605045506,-3000.0,0.0002135,2]
[361544142,1747605045516,-3000.0,0.0002136,2]
[361544144,1747605045525,-3000.0,0.0002137,2]
[361544146,1747605045535,-3000.0,0.0002138,2]
[361544148,1747605045543,-3000.0,0.0002139,2]
[361544150,1747605045554,-3000.0,0.000214,2]
[361544152,1747605045565,-3000.0,0.0002141,2]
[361544154,1747605045574,-3000.0,0.0002142,2]
[361544156,1747605045583,-3000.0,0.0002143,2]
[361544158,1747605045593,-3909.119924,0.0002144,2]
[361544160,1747605045602,-500.0,0.00021644,2]
[361544162,1747605045612,-500.0,0.00021678,2]
[361544164,1747605045621,-500.0,0.00021678,2]
[361544166,1747605045631,-500.0,0.00021678,2]
[361544168,1747605045640,-500.0,0.00021678,2]
[361544170,1747605045651,-500.0,0.00021678,2]
[361544172,1747605045660,-500.0,0.00021678,2]
[361544174,1747605045669,-641.46561814,0.00021678,2]
[361544176,1747605045678,-512.00346352,0.00021678,2]
[361544178,1747605045687,-500.0,0.00021679,2]
[361544180,1747605045696,-500.0,0.00021679,2]
[361544182,1747605045706,-500.0,0.00021679,2]
[361544184,1747605045715,-289.47414984,0.00021679,2]
[361544186,1747605045724,-500.0,0.00021679,2]
[361544188,1747605045734,-500.0,0.00021679,2]
[361544190,1747605045744,-500.0,0.00021679,2]
[361544192,1747605045753,-500.0,0.00021679,2]
[361544194,1747605045763,-500.0,0.00021679,2]
[361544196,1747605045772,-500.0,0.00021679,2]
[361544198,1747605045781,-500.0,0.00021679,2]
[361544200,1747605045791,-500.0,0.00021679,2]
[361544202,1747605045800,-500.0,0.00021679,2]
[361544204,1747605045809,-5295.05090422,0.00021728,5]
[361544206,1747605045819,-1406.10417536,0.000218,5]
[361544305,1747605046761,-38593.89582464,0.000218,5]
[361544307,1747605046771,-2200.0,0.00021824,2]
[361544309,1747605046780,-210.68636762,0.00021877,2]
[361544311,1747605046790,-500.0,0.00021877,2]
[361544313,1747605046799,-500.0,0.00021877,2]
[361544315,1747605046809,-500.0,0.00021877,2]
[361544317,1747605046818,-500.0,0.00021877,2]
[361544319,1747605046827,-500.0,0.00021877,2]
[361544321,1747605046836,-500.0,0.00021877,2]
[361544323,1747605046846,-500.0,0.00021877,2]
[361544325,1747605046855,-500.0,0.00021877,2]
[361544327,1747605046864,-500.0,0.00021877,2]
[361544329,1747605046874,-500.0,0.00021877,2]
[361544331,1747605046884,-500.0,0.00021877,2]
[361544333,1747605046893,-500.0,0.00021877,2]
[361544335,1747605046902,-500.0,0.00021877,2]
[361544337,1747605046911,-500.0,0.00021877,2]
[361544339,1747605046920,-500.0,0.00021877,2]
[361544341,1747605046930,-500.0,0.00021877,2]
[361544342,1747605046939,-500.0,0.00021877,2]
[361544343,1747605046948,-500.0,0.00021877,2]
[361544344,1747605046958,-500.0,0.00021877,2]
[361544345,1747605046968,-500.0,0.00021877,2]
[361544346,1747605046978,-500.0,0.00021877,2]
[361544347,1747605046987,-500.0,0.00021877,2]
[361544348,1747605046996,-500.0,0.00021877,2]
[361544349,1747605047006,-500.0,0.00021877,2]
[361544350,1747605047016,-500.0,0.00021877,2]
[361544351,1747605047026,-500.0,0.00021877,2]
[361544352,1747605047035,-500.0,0.00021877,2]
[361544353,1747605047045,-500.0,0.00021877,2]
[361544354,1747605047054,-600.0,0.00021877,2]
[361544355,1747605047064,-221.92580286,0.00021877,2]
[361545071,1747606231796,-833.66750989,0.00013291,2]
[361545072,1747606231854,-407.96641018,0.00013291,2]
[361545073,1747606231866,-2834.23607993,0.00013291,2]
[361545075,1747606231875,-450.0,0.00013698,2]
[361545077,1747606231885,-450.0,0.00013698,2]
[361545079,1747606231894,-469.0,0.00013698,2]
[361545081,1747606231903,-388.79750989,0.00013698,2]
[361545176,1747606238172,-4075.87,0.00013158,2]
[361545179,1747606238182,-61.20249011,0.00013698,2]
[361545181,1747606238192,-456.87,0.00013698,2]
[361545183,1747606238203,-450.0,0.00013698,2]
[361545185,1747606238212,-450.0,0.00013698,2]
[361545187,1747606238222,-450.0,0.00013698,2]
[361545189,1747606238231,-450.0,0.00013698,2]
[361545191,1747606238241,-477.16,0.00013698,2]
[361545193,1747606238250,-662.663513,0.00013699,2]
[361545195,1747606238259,-160.0,0.00014397,2]
[361545197,1747606238268,-160.0,0.00014397,2]
[361545199,1747606238278,-160.0,0.00014397,2]
[361545201,1747606238287,-546.0,0.00015188,2]
[361545203,1747606238301,-707.0,0.00015188,2]
[361545205,1747606238310,-1308.81580809,0.00015188,2]
[361545283,1747606240071,-926.18419191,0.00015188,2]
[361545285,1747606240080,-404.0,0.00015188,2]
[361545287,1747606240090,-160.0,0.00015486,2]
[361545289,1747606240099,-9709.81580809,0.00015486,2]
[361548156,1747607439281,-860.86693198,0.00013158,2]
[361548157,1747607439293,-1131.217641,0.00013158,2]
[361548158,1747607439302,-450.0,0.00013698,2]
[361548159,1747607439313,-450.0,0.00013698,2]
[361548160,1747607439322,-450.0,0.00013698,2]
[361548161,1747607439332,-518.27,0.00013698,2]
[361548162,1747607439342,-450.0,0.00013698,2]
[361548163,1747607439352,-450.0,0.00013698,2]
[361548164,1747607439361,-450.0,0.00013698,2]
[361548165,1747607439371,-203.65334259,0.00013698,2]
[361548166,1747607439380,-450.0,0.00013698,2]
[361548167,1747607439390,-192.08457298,0.00013698,2]
[361548168,1747607439399,-174.64237273,0.00013698,2]
[361548169,1747607439411,-275.35762727,0.00013698,2]
[361548170,1747607439420,-662.393774,0.00013699,2]
[361548171,1747607439429,-1062.1071807,0.00014999,2]
[361548172,1747607439439,-652.84442803,0.00015188,2]
[361548173,1747607439449,-160.0,0.00015229,2]
[361548174,1747607439459,-160.0,0.00015229,2]
[361548175,1747607439468,-160.0,0.0001523,2]
[361548176,1747607439477,-12636.50182523,0.00015299,2]
[361548178,1747607439487,-160.0,0.00015299,2]
[361548179,1747607439496,-998.55070715,0.00015299,2]
[361548181,1747607439505,-212.32903618,0.00015299,2]
[361548182,1747607439514,-422.53311782,0.00015299,2]
[361548184,1747607439524,-2235.0,0.00015367,2]
[361548185,1747607439534,-707.0,0.00015367,2]
[361548186,1747607439543,-404.0,0.00015367,2]
[361548187,1747607439552,-298.7548373,0.0001582,2]
[361548188,1747607439564,-153.67652403,0.000166,2]
[361548189,1747607439577,-500.0,0.00016673,2]
[361548192,1747607439586,-500.0,0.00016673,2]
[361548194,1747607439596,-500.0,0.00016699,2]
[361548196,1747607439605,-500.0,0.00016699,2]
[361548198,1747607439615,-500.0,0.00016699,2]
[361548200,1747607439624,-395.10963121,0.00016699,2]
[361548201,1747607439634,-500.0,0.00016699,2]
[361548203,1747607439643,-460.36805839,0.00016699,2]
[361548216,1747607439829,-500.0,0.00016699,2]
[361548217,1747607439838,-500.0,0.00016699,2]
[361548218,1747607439847,-500.0,0.00016699,2]
[361548219,1747607439856,-337.57304633,0.00016699,2]
[361548220,1747607439866,-500.0,0.00016699,2]
[361548221,1747607439875,-500.0,0.00016699,2]
[361548222,1747607439884,-500.0,0.00016699,2]
[361548223,1747607439893,-500.0,0.00016699,2]
[361548224,1747607439904,-500.0,0.00016699,2]
[361548225,1747607439914,-500.0,0.00016699,2]
[361548226,1747607439927,-500.0,0.00016699,2]
[361548227,1747607439936,-500.0,0.00016699,2]
[361548228,1747607439947,-500.0,0.00016699,2]
[361548229,1747607439956,-500.0,0.00016699,2]
[361548230,1747607439966,-500.0,0.00016699,2]
[361548231,1747607439977,-543.8772702,0.00016699,2]
[361548232,1747607439987,-500.0,0.00016699,2]
[361548233,1747607439997,-500.0,0.00016699,2]
[361548234,1747607440007,-500.0,0.00016699,2]
[361548235,1747607440016,-500.0,0.00016699,2]
[361548236,1747607440026,-452.17778001,0.00016699,2]
[361548237,1747607440036,-354.7242898,0.00016699,2]
[361548239,1747607440046,-71933.88104436,0.000167,3]
[361548241,1747607440055,-11146.84159787,0.000167,2]
[361548243,1747607440072,-878.62109527,0.000167,2]
[361549417,1747608562667,-409.84924793,8.219e-05,2]
[361549418,1747608567274,-99.15075207,8.219e-05,2]
[361549428,1747608632339,-263.19042172,0.00012896,2]
[361549429,1747608632369,-186.80957828,0.00012896,2]
[361549430,1747608632378,-450.0,0.00013698,2]
[361549431,1747608632387,-450.0,0.00013698,2]
[361549432,1747608632396,-450.0,0.00013698,2]
[361549433,1747608632407,-450.0,0.00013698,2]
[361549434,1747608632416,-450.0,0.00013698,2]
[361549435,1747608632425,-450.0,0.00013698,2]
[361549437,1747608632435,-450.0,0.00013698,2]
[361549438,1747608632443,-450.0,0.00013698,2]
[361549439,1747608632453,-629.274085,0.00013699,2]
[361549440,1747608632462,-173.48253736,0.00013835,2]
[361549441,1747608632471,-160.0,0.0001492,2]
[361549442,1747608632480,-160.0,0.00015109,2]
[361549443,1747608632489,-90.43379936,0.00015526,2]
[361550075,1747608646478,-300.0,0.0001356,2]
[361550077,1747608646487,-111.926,0.00013697,2]
[361550687,1747609832716,-645.7679415,0.0001321,2]
[361550688,1747609832726,-645.7679415,0.00013343,2]
[361550689,1747609832735,-450.0,0.00013698,2]
[361550690,1747609832744,-450.0,0.00013698,2]
[361550691,1747609832753,-450.0,0.00013698,2]
[361550692,1747609832762,-327.14,0.00013698,2]
[361550693,1747609832772,-450.0,0.00013698,2]
[361550694,1747609832781,-450.0,0.00013698,2]
[361550695,1747609832790,-450.0,0.00013698,2]
[361550696,1747609832799,-597.81038,0.00013699,2]
[361550697,1747609832809,-450.0,0.00013835,2]
[361550698,1747609832818,-450.0,0.00013972,2]
[361550699,1747609832829,-393.20559136,0.00014009,2]
[361550700,1747609832838,-2730.90439204,0.00014109,3]
[361550725,1747609838852,-188.0,0.00013697,2]
[361550726,1747609838862,-500.0,0.00014108,2]
[361550727,1747609838871,-626.57674184,0.00014108,2]
[361550728,1747609838880,-500.0,0.00014108,2]
[361550730,1747609838889,-15.27274233,0.00014108,2]
[361550793,1747609840700,-356.98489855,0.00014108,2]
[361550795,1747609840710,-222.02929485,0.00014108,2]
[361550797,1747609840720,-500.0,0.00014108,2]
[361550799,1747609840730,-212.32903618,0.00014109,3]
[361550801,1747609840739,-1008.65677042,0.00014109,3]
[361551091,1747609843550,-1079.0141934,0.00013967,2]
[361551093,1747609843560,-3106.9930981,0.00014109,3]
[361551105,1747609843667,-29120.38626162,0.00014109,3]
[361551107,1747609843676,-288124.04195502,0.00014109,2]
[361552559,1747611032706,-1294.20365324,0.00013158,2]
[361552598,1747611038711,-6148.63136764,0.00013158,2]
[361552974,1747611043787,-4136.25990804,0.00013158,2]
[361552976,1747611043796,-450.0,0.00013698,2]
[361552979,1747611043805,-450.0,0.00013698,2]
[361552982,1747611043815,-301.71,0.00013698,2]
[361552985,1747611043826,-450.0,0.00013698,2]
[361552987,1747611043839,-450.0,0.00013698,2]
[361552989,1747611043848,-450.0,0.00013698,2]
[361552991,1747611043860,-450.0,0.00013698,2]
[361552994,1747611043871,-570.88772812,0.00013698,2]
[361552996,1747611043881,-450.0,0.00013698,2]
[361552998,1747611043891,-450.0,0.00013698,2]
[361553000,1747611043905,-450.0,0.00013698,2]
[361553002,1747611043915,-213.5,0.00013698,2]
[361553004,1747611043924,-607.274185,0.00013699,2]
[361553006,1747611043935,-376.94,0.00013835,2]
[361553008,1747611043945,-370.96968754,0.0001395,2]
[361553010,1747611043955,-500.0,0.0001425,2]
[361553012,1747611043965,-500.0,0.0001425,2]
[361553014,1747611043974,-500.0,0.0001425,2]
[361553017,1747611043984,-500.0,0.0001425,2]
[361553020,1747611043999,-500.0,0.00014275,2]
[361553024,1747611044012,-212.50057946,0.00014275,2]
[361554541,1747612231880,-1775.7653122,0.00012926,2]
[361554542,1747612231890,-153.03333796,0.00013089,2]
[361554543,1747612231901,-153.03333796,0.00013184,2]
[361554544,1747612231910,-1775.7653122,0.00013189,2]
[361554545,1747612231920,-153.03333796,0.0001328,2]
[361554546,1747612231929,-153.03333796,0.00013375,2]
[361554548,1747612231938,-153.03333796,0.0001347,2]
[361554550,1747612231947,-153.03333796,0.00013566,2]
[361554552,1747612231957,-2185.61920081,0.0001366,2]
[361554554,1747612231966,-153.03333796,0.00013661,2]
[361554555,1747612231975,-1048.50209336,0.00013661,2]
[361554557,1747612231985,-1200.0,0.00013697,2]
[361554560,1747612231994,-300.0,0.00013697,2]
[361554561,1747612232004,-300.0,0.00013698,2]
[361554562,1747612232013,-300.0,0.00013698,2]
[361554563,1747612232023,-300.0,0.00013698,2]
[361554564,1747612232032,-507.450492,0.00013699,2]
[361554565,1747612232043,-15029.9766112,0.00013699,2]
[361554566,1747612232052,-605.253264,0.00013699,2]
[361554567,1747612232062,-599.15816987,0.0001376,2]
[361554568,1747612232071,-500.0,0.0001376,2]
[361554569,1747612232081,-500.0,0.0001376,2]
[361554570,1747612232090,-214.13473084,0.0001376,2]
[361554571,1747612232099,-500.0,0.0001376,2]
[361554572,1747612232112,-220.32195871,0.0001376,2]
[361554573,1747612232122,-500.0,0.0001376,2]
[361554574,1747612232131,-500.0,0.0001376,2]
[361554575,1747612232140,-500.0,0.0001376,2]
[361554576,1747612232150,-500.0,0.0001376,2]
[361554577,1747612232159,-500.0,0.0001376,2]
[361554578,1747612232168,-500.0,0.0001376,2]
[361554579,1747612232178,-500.0,0.0001376,2]
[361554580,1747612232187,-500.0,0.0001376,2]
[361554581,1747612232196,-500.0,0.0001376,2]
[361554582,1747612232205,-500.0,0.0001376,2]
[361554583,1747612232215,-500.0,0.0001376,2]
[361554584,1747612232224,-500.0,0.0001376,2]
[361554585,1747612232233,-201.77674017,0.0001376,2]
[361554586,1747612232242,-500.0,0.0001376,2]
[361554587,1747612232251,-500.0,0.0001376,2]
[361554588,1747612232260,-500.0,0.0001376,2]
[361554589,1747612232269,-500.0,0.0001376,2]
[361554590,1747612232278,-500.0,0.0001376,2]
[361554591,1747612232287,-500.0,0.0001376,2]
[361554592,1747612232297,-500.0,0.0001376,2]
[361554593,1747612232306,-500.0,0.0001376,2]
[361554594,1747612232315,-500.0,0.0001376,2]
[361554595,1747612232324,-221.93477702,0.0001376,2]
[361554596,1747612232334,-1328.07226928,0.0001376,2]
[361554597,1747612232343,-1328.07226928,0.0001376,2]
[361554598,1747612232352,-1328.07226928,0.0001376,2]
[361554599,1747612232361,-1328.07226928,0.0001376,2]
[361554600,1747612232371,-1328.07226928,0.0001376,2]
[361554601,1747612232380,-1328.07226928,0.0001376,2]
[361554602,1747612232389,-1328.07226928,0.0001376,2]
[361554603,1747612232399,-1328.07226928,0.0001376,2]
[361554604,1747612232408,-1328.07226928,0.0001376,2]
[361554605,1747612232418,-1328.07226928,0.0001376,2]
[361554606,1747612232427,-1328.07226928,0.0001376,2]
[361554607,1747612232436,-1328.07226928,0.0001376,2]
[361554608,1747612232445,-1328.07226928,0.0001376,2]
[361554609,1747612232455,-1328.07226928,0.0001376,2]
[361554610,1747612232464,-1328.07226928,0.0001376,2]
[361554611,1747612232474,-1328.07226928,0.0001376,2]
[361554612,1747612232483,-1328.07226928,0.0001376,2]
[361554613,1747612232493,-1328.07226928,0.0001376,2]
[361554615,1747612232502,-1328.07226928,0.0001376,2]
[361554617,1747612232511,-1328.07226928,0.0001376,2]
[361554619,1747612232521,-1328.07226928,0.0001376,2]
[361554621,1747612232530,-1328.07226928,0.0001376,2]
[361554623,1747612232542,-1328.07226928,0.0001376,2]
[361554625,1747612232552,-1328.07226928,0.0001376,2]
[361554626,1747612232562,-1328.07226928,0.0001376,2]
[361554627,1747612232574,-1328.07226928,0.0001376,2]
[361554628,1747612232587,-1328.07226928,0.0001376,2]
[361554629,1747612232597,-1328.07226928,0.0001376,2]
[361554630,1747612232609,-1328.07226928,0.0001376,2]
[361554631,1747612232619,-1328.07226928,0.0001376,2]
[361554632,1747612232630,-1328.07226928,0.0001376,2]
[361554633,1747612232640,-1328.07226928,0.0001376,2]
[361554634,1747612232651,-1328.07226928,0.0001376,2]
[361554635,1747612232661,-1328.07226928,0.0001376,2]
[361554636,1747612232671,-1328.07226928,0.0001376,2]
[361554637,1747612232680,-1328.07226928,0.0001376,2]
[361554638,1747612232691,-1328.07226928,0.0001376,2]
[361554639,1747612232700,-1328.07226928,0.0001376,2]
[361554640,1747612232710,-1328.07226928,0.0001376,2]
[361554641,1747612232720,-1328.07226928,0.0001376,2]
[361554642,1747612232730,-1328.07226928,0.0001376,2]
[361554643,1747612232740,-1328.07226928,0.0001376,2]
[361554644,1747612232750,-1328.07226928,0.0001376,2]
[361554645,1747612232759,-1328.07226928,0.0001376,2]
[361554646,1747612232769,-1328.07226928,0.0001376,2]
[361554647,1747612232779,-1328.07226928,0.0001376,2]
[361554648,1747612232790,-1328.07226928,0.0001376,2]
[361554649,1747612232800,-1328.07226928,0.0001376,2]
[361554650,1747612232810,-1328.07226928,0.0001376,2]
[361554651,1747612232820,-1328.07226928,0.0001376,2]
[361554652,1747612232829,-1328.07226928,0.0001376,2]
[361554653,1747612232839,-1328.07226928,0.0001376,2]
[361554654,1747612232849,-1328.07226928,0.0001376,2]
[361554655,1747612232859,-1328.07226928,0.0001376,2]
[361554656,1747612232869,-1328.07226928,0.0001376,2]
[361554657,1747612232879,-1328.07226928,0.0001376,2]
[361554658,1747612232888,-1328.07226928,0.0001376,2]
[361554659,1747612232898,-1328.07226928,0.0001376,2]
[361554660,1747612232909,-1328.07226928,0.0001376,2]
[361554661,1747612232918,-1328.07226928,0.0001376,2]
[361554662,1747612232929,-1328.07226928,0.0001376,2]
[361554663,1747612232938,-1328.07226928,0.0001376,2]
[361554664,1747612232948,-499.99999999,0.0001376,2]
[361554665,1747612232958,-500.0,0.0001376,2]
[361554666,1747612232967,-453.32528111,0.0001376,2]
[361554667,1747612232976,-1328.07226928,0.0001376,2]
[361554668,1747612232986,-1293.64076599,0.0001376,2]
[361554669,1747612232995,-1293.64076599,0.0001376,2]
[361554670,1747612233004,-1293.64076599,0.0001376,2]
[361554671,1747612233014,-1293.64076599,0.0001376,2]
[361554672,1747612233024,-1293.64076599,0.0001376,2]
[361554673,1747612233034,-1293.64076599,0.0001376,2]
[361554674,1747612233044,-1293.64076599,0.0001376,2]
[361554675,1747612233054,-1293.64076599,0.0001376,2]
[361554676,1747612233064,-1293.64076599,0.0001376,2]
[361554677,1747612233073,-1293.64076599,0.0001376,2]
[361554678,1747612233083,-1293.64076599,0.0001376,2]
[361554679,1747612233092,-1293.64076599,0.0001376,2]
[361554680,1747612233102,-1293.64076599,0.0001376,2]
[361554681,1747612233112,-1293.64076599,0.0001376,2]
[361554682,1747612233122,-1293.64076599,0.0001376,2]
[361554683,1747612233132,-1293.64076599,0.0001376,2]
[361554684,1747612233142,-1293.64076599,0.0001376,2]
[361554685,1747612233151,-1293.64076599,0.0001376,2]
[361554686,1747612233161,-1293.64076599,0.0001376,2]
[361554687,1747612233170,-1293.64076599,0.0001376,2]
[361554688,1747612233180,-1293.64076599,0.0001376,2]
[361554689,1747612233189,-1293.64076599,0.0001376,2]
[361554690,1747612233369,-1293.64076599,0.0001376,2]
[361554691,1747612233379,-1293.64076599,0.0001376,2]
[361554692,1747612233389,-1293.64076599,0.0001376,2]
[361554693,1747612233398,-1293.64076599,0.0001376,2]
[361554694,1747612233415,-17983.47026109,0.00013761,3]
[361554695,1747612233428,-158206.28498781,0.00013761,2]
[361554696,1747612233444,-21590.07758267,0.00013761,2]
[361554748,1747612242120,-196.79187721,0.00013761,2]
[361554807,1747612243099,-46951.8726186,0.00013761,2]